[Event "Titled Tuesday Blitz March 08 Early 2022"]
[White "Yaniuk, Volodymyr"]
[Black "Gedgafov, Chamal"]
[WhiteFideId "14133083"]
[BlackFideId "34130621"]
[WhiteElo "2207"]
[BlackElo "2030"]
[Result "1-0"]
[Round "01"]
[TimeControl "180+1"]
[Date "2022.03.09"]
[WhiteClock "0:00:09"]
[BlackClock "0:00:01"]

1. d4 {[%clk 0:02:59]}  e6 {[%clk 0:02:53]} 2. c4 {[%clk 0:02:59]}  Nf6 {[%clk 0:02:52]} 3. g3 {[%clk 0:02:59]}  d5 {[%clk 0:02:46]} 4. Bg2 {[%clk 0:02:59]}  Nbd7 {[%clk 0:02:45]} 5. Nf3 {[%clk 0:02:57]}  Be7 {[%clk 0:02:44]} 6. O-O {[%clk 0:02:57]}  dxc4 {[%clk 0:02:45]} 7. Qc2 {[%clk 0:02:55]}  Nb6 {[%clk 0:02:44]} 8. Rd1 {[%clk 0:02:53]}  c6 {[%clk 0:02:44]} 9. Ne5 {[%clk 0:02:52]}  O-O {[%clk 0:02:38]} 10. Nxc4 {[%clk 0:02:52]}  Nxc4 {[%clk 0:02:38]} 11. Qxc4 {[%clk 0:02:53]}  e5 {[%clk 0:02:33]} 12. Nc3 {[%clk 0:02:49]}  exd4 {[%clk 0:02:33]} 13. Rxd4 {[%clk 0:02:50]}  Qb6 {[%clk 0:02:27]} 14. Be3 {[%clk 0:02:45]}  Be6 {[%clk 0:02:25]} 15. Qd3 {[%clk 0:02:41]}  Qa5 {[%clk 0:02:15]} 16. h3 {[%clk 0:02:34]}  Rfd8 {[%clk 0:02:13]} 17. Rd1 {[%clk 0:02:29]}  Rxd4 {[%clk 0:02:12]} 18. Bxd4 {[%clk 0:02:30]}  Rd8 {[%clk 0:02:06]} 19. Qc2 {[%clk 0:02:29]}  Nd5 {[%clk 0:01:50]} 20. a3 {[%clk 0:02:18]}  Nxc3 {[%clk 0:01:45]} 21. Bxc3 {[%clk 0:02:19]}  Rxd1+ {[%clk 0:01:41]} 22. Qxd1 {[%clk 0:02:20]}  Qh5 {[%clk 0:01:38]} 23. g4 {[%clk 0:02:18]}  Qg5 {[%clk 0:01:30]} 24. e3 {[%clk 0:02:09]}  h5 {[%clk 0:01:25]} 25. f4 {[%clk 0:02:09]}  Qb5 {[%clk 0:01:16]} 26. f5 {[%clk 0:02:05]}  Bd5 {[%clk 0:01:03]} 27. e4 {[%clk 0:02:00]}  Bb3 {[%clk 0:00:59]} 28. Qd7 {[%clk 0:01:57]}  Bg5 {[%clk 0:00:40]} 29. Qd4 {[%clk 0:01:51]}  Bf6 {[%clk 0:00:37]} 30. e5 {[%clk 0:01:50]}  Be7 {[%clk 0:00:35]} 31. Kh1 {[%clk 0:01:47]}  hxg4 {[%clk 0:00:34]} 32. f6 {[%clk 0:01:42]}  Bf8 {[%clk 0:00:28]} 33. Qxg4 {[%clk 0:01:38]}  g6 {[%clk 0:00:26]} 34. Be4 {[%clk 0:01:34]}  Bd5 {[%clk 0:00:23]} 35. Kh2 {[%clk 0:01:24]}  Bxe4 {[%clk 0:00:23]} 36. Qxe4 {[%clk 0:01:25]}  Qd5 {[%clk 0:00:19]} 37. Qxd5 {[%clk 0:01:24]}  cxd5 {[%clk 0:00:20]} 38. Bd4 {[%clk 0:01:24]}  b6 {[%clk 0:00:19]} 39. Kg3 {[%clk 0:01:23]}  Bc5 {[%clk 0:00:19]} 40. Bc3 {[%clk 0:01:13]}  Kf8 {[%clk 0:00:18]} 41. Kg4 {[%clk 0:01:07]}  Ke8 {[%clk 0:00:18]} 42. Kf4 {[%clk 0:00:54]}  Kd7 {[%clk 0:00:18]} 43. b4 {[%clk 0:00:49]}  Bg1 {[%clk 0:00:17]} 44. Kg5 {[%clk 0:00:33]}  Be3+ {[%clk 0:00:16]} 45. Kg4 {[%clk 0:00:31]}  Ke6 {[%clk 0:00:17]} 46. Kf3 {[%clk 0:00:29]}  Bg1 {[%clk 0:00:17]} 47. Kg2 {[%clk 0:00:29]}  Be3 {[%clk 0:00:16]} 48. Kf3 {[%clk 0:00:28]}  Bc1 {[%clk 0:00:15]} 49. a4 {[%clk 0:00:28]}  Kf5 {[%clk 0:00:13]} 50. Bd4 {[%clk 0:00:24]}  Ba3 {[%clk 0:00:11]} 51. b5 {[%clk 0:00:23]}  Bb4 {[%clk 0:00:07]} 52. Bb2 {[%clk 0:00:20]}  Bd2 {[%clk 0:00:07]} 53. Bd4 {[%clk 0:00:19]}  Bb4 {[%clk 0:00:07]} 54. Ke3 {[%clk 0:00:16]}  Ba3 {[%clk 0:00:05]} 55. Kd3 {[%clk 0:00:15]}  Ke6 {[%clk 0:00:04]} 56. Ke3 {[%clk 0:00:14]}  Bb4 {[%clk 0:00:03]} 57. Kf4 {[%clk 0:00:15]}  Ba3 {[%clk 0:00:02]} 58. Kg5 {[%clk 0:00:12]}  Bc1+ {[%clk 0:00:02]} 59. Kg4 {[%clk 0:00:12]}  Ba3 {[%clk 0:00:02]} 60. h4 {[%clk 0:00:10]}  Bb4 {[%clk 0:00:02]} 61. h5 {[%clk 0:00:08]}  gxh5+ {[%clk 0:00:02]} 62. Kxh5 {[%clk 0:00:09]}  Ba3 {[%clk 0:00:01]} 63. Kh6 {[%clk 0:00:09]} 1-0


[Site "https://www.chess.com"]

[Event "Titled Tuesday Blitz March 08 Early 2022"]
[White "Zaksaite, Salomeja"]
[Black "Kouskoutis, Georgios-Alexandros"]
[WhiteFideId "12801496"]
[BlackFideId "4234049"]
[WhiteElo "1953"]
[BlackElo "2130"]
[Result "0-1"]
[Round "01"]
[TimeControl "180+1"]
[Date "2022.03.09"]
[WhiteClock "0:00:01"]
[BlackClock "0:00:10"]

1. e4 {[%clk 0:02:28]}  c5 {[%clk 0:02:59]} 2. Nf3 {[%clk 0:02:28]}  e6 {[%clk 0:02:59]} 3. d4 {[%clk 0:02:26]}  cxd4 {[%clk 0:03:00]} 4. Nxd4 {[%clk 0:02:26]}  Nc6 {[%clk 0:03:01]} 5. Nc3 {[%clk 0:02:26]}  Qc7 {[%clk 0:02:56]} 6. g3 {[%clk 0:02:14]}  a6 {[%clk 0:02:55]} 7. Bg2 {[%clk 0:02:14]}  h5 {[%clk 0:02:49]} 8. h3 {[%clk 0:02:10]}  Nf6 {[%clk 0:02:15]} 9. O-O {[%clk 0:02:02]}  h4 {[%clk 0:01:59]} 10. g4 {[%clk 0:01:57]}  Nxd4 {[%clk 0:01:49]} 11. Qxd4 {[%clk 0:01:56]}  Bd6 {[%clk 0:01:33]} 12. Bg5 {[%clk 0:01:52]}  Be5 {[%clk 0:01:23]} 13. Qd3 {[%clk 0:01:42]}  b5 {[%clk 0:01:12]} 14. f4 {[%clk 0:01:37]}  Bxc3 {[%clk 0:01:09]} 15. bxc3 {[%clk 0:01:08]}  Bb7 {[%clk 0:01:08]} 16. Qd4 {[%clk 0:00:25]}  Rc8 {[%clk 0:01:05]} 17. Bxf6 {[%clk 0:00:06]}  gxf6 {[%clk 0:01:06]} 18. Qxf6 {[%clk 0:00:06]}  Rf8 {[%clk 0:01:03]} 19. Rf3 {[%clk 0:00:05]}  Bxe4 {[%clk 0:01:02]} 20. Re3 {[%clk 0:00:04]}  Bxg2 {[%clk 0:00:39]} 21. Kxg2 {[%clk 0:00:05]}  Qc6+ {[%clk 0:00:39]} 22. Kh2 {[%clk 0:00:04]}  Qc5 {[%clk 0:00:28]} 23. Rae1 {[%clk 0:00:05]}  Qe7 {[%clk 0:00:28]} 24. Qd4 {[%clk 0:00:04]}  f5 {[%clk 0:00:20]} 25. g5 {[%clk 0:00:04]}  Rc4 {[%clk 0:00:19]} 26. Qa7 {[%clk 0:00:03]}  Kf7 {[%clk 0:00:15]} 27. Qxa6 {[%clk 0:00:03]}  Rxf4 {[%clk 0:00:15]} 28. Qxb5 {[%clk 0:00:02]}  Rg8 {[%clk 0:00:13]} 29. Rg1 {[%clk 0:00:02]}  Rf2+ {[%clk 0:00:12]} 30. Kh1 {[%clk 0:00:01]}  Qd6 {[%clk 0:00:10]} 0-1


[Site "https://www.chess.com"]

[Event "Titled Tuesday Blitz March 08 Early 2022"]
[White "Zhigalko, Sergei"]
[Black "Petrovic, Aleksa"]
[WhiteFideId "13502956"]
[BlackFideId "967629"]
[WhiteElo "2662"]
[BlackElo "2245"]
[Result "1-0"]
[Round "01"]
[TimeControl "180+1"]
[Date "2022.03.08"]
[WhiteClock "0:01:00"]
[BlackClock "0:00:30"]

1. e4 {[%clk 0:03:00]}  c5 {[%clk 0:02:58]} 2. Nf3 {[%clk 0:03:01]}  d6 {[%clk 0:02:58]} 3. d4 {[%clk 0:03:00]}  cxd4 {[%clk 0:02:59]} 4. Qxd4 {[%clk 0:03:01]}  Nf6 {[%clk 0:02:58]} 5. Nc3 {[%clk 0:03:01]}  a6 {[%clk 0:02:56]} 6. Bc4 {[%clk 0:03:01]}  Nbd7 {[%clk 0:02:48]} 7. O-O {[%clk 0:02:22]}  e6 {[%clk 0:02:40]} 8. a4 {[%clk 0:02:16]}  Qc7 {[%clk 0:02:24]} 9. Bg5 {[%clk 0:01:55]}  h6 {[%clk 0:02:18]} 10. Bh4 {[%clk 0:01:54]}  b6 {[%clk 0:01:57]} 11. Rfd1 {[%clk 0:01:51]}  Bb7 {[%clk 0:01:55]} 12. Ba2 {[%clk 0:01:43]}  e5 {[%clk 0:01:37]} 13. Qe3 {[%clk 0:01:33]}  g5 {[%clk 0:01:33]} 14. Bg3 {[%clk 0:01:32]}  Nc5 {[%clk 0:01:32]} 15. Nd2 {[%clk 0:01:31]}  Ne6 {[%clk 0:01:18]} 16. Nc4 {[%clk 0:01:27]}  Nd4 {[%clk 0:01:09]} 17. Rxd4 {[%clk 0:01:27]}  exd4 {[%clk 0:01:09]} 18. Qxd4 {[%clk 0:01:28]}  Be7 {[%clk 0:01:02]} 19. Nxd6+ {[%clk 0:01:24]}  Kf8 {[%clk 0:00:52]} 20. Nxf7 {[%clk 0:01:12]}  Qc5 {[%clk 0:00:45]} 21. Qxc5 {[%clk 0:01:08]}  Bxc5 {[%clk 0:00:46]} 22. Nxh8 {[%clk 0:01:08]}  Kg7 {[%clk 0:00:42]} 23. Nf7 {[%clk 0:01:08]}  Nxe4 {[%clk 0:00:33]} 24. Nxe4 {[%clk 0:01:05]}  Bxe4 {[%clk 0:00:34]} 25. c3 {[%clk 0:01:01]}  Re8 {[%clk 0:00:31]} 26. Nd6 {[%clk 0:01:00]}  Bxd6 {[%clk 0:00:30]} 27. Bxd6 {[%clk 0:01:00]} 1-0


[Site "https://www.chess.com"]

[Event "Titled Tuesday Blitz March 08 Early 2022"]
[White "Arabidze, Meri"]
[Black "Havas, Ladislav"]
[WhiteFideId "13604040"]
[BlackFideId "14501090"]
[WhiteElo "2335"]
[BlackElo "2206"]
[Result "1-0"]
[Round "02"]
[TimeControl "180+1"]
[Date "2022.03.09"]
[WhiteClock "0:02:01"]
[BlackClock "0:01:12"]

1. d4 {[%clk 0:02:55]}  Nf6 {[%clk 0:03:00]} 2. Nf3 {[%clk 0:02:56]}  g6 {[%clk 0:02:59]} 3. g3 {[%clk 0:02:57]}  Bg7 {[%clk 0:03:00]} 4. Bg2 {[%clk 0:02:58]}  O-O {[%clk 0:03:01]} 5. O-O {[%clk 0:02:59]}  d6 {[%clk 0:03:01]} 6. a4 {[%clk 0:03:00]}  c6 {[%clk 0:03:01]} 7. a5 {[%clk 0:03:00]}  a6 {[%clk 0:03:01]} 8. Nc3 {[%clk 0:03:00]}  Nbd7 {[%clk 0:03:00]} 9. e4 {[%clk 0:03:00]}  e5 {[%clk 0:03:00]} 10. d5 {[%clk 0:03:00]}  c5 {[%clk 0:02:59]} 11. Nd2 {[%clk 0:03:00]}  Ne8 {[%clk 0:02:58]} 12. Nc4 {[%clk 0:03:00]}  f5 {[%clk 0:02:54]} 13. f4 {[%clk 0:02:56]}  exf4 {[%clk 0:02:52]} 14. Bxf4 {[%clk 0:02:57]}  Ndf6 {[%clk 0:02:49]} 15. Nb6 {[%clk 0:02:55]}  Rb8 {[%clk 0:02:48]} 16. e5 {[%clk 0:02:55]}  Nh5 {[%clk 0:02:43]} 17. e6 {[%clk 0:02:56]}  Nxf4 {[%clk 0:02:42]} 18. gxf4 {[%clk 0:02:56]}  Nc7 {[%clk 0:02:31]} 19. Re1 {[%clk 0:02:54]}  Qe7 {[%clk 0:02:30]} 20. Qf3 {[%clk 0:02:44]}  Nb5 {[%clk 0:02:28]} 21. Nxb5 {[%clk 0:02:43]}  axb5 {[%clk 0:02:28]} 22. c3 {[%clk 0:02:43]}  h6 {[%clk 0:02:19]} 23. Rf1 {[%clk 0:02:37]}  Kh7 {[%clk 0:02:19]} 24. Kh1 {[%clk 0:02:35]}  Re8 {[%clk 0:02:15]} 25. Rg1 {[%clk 0:02:34]}  Qf6 {[%clk 0:02:14]} 26. Bh3 {[%clk 0:02:31]}  b4 {[%clk 0:02:10]} 27. Rg3 {[%clk 0:02:30]}  bxc3 {[%clk 0:02:07]} 28. bxc3 {[%clk 0:02:31]}  Bxe6 {[%clk 0:02:00]} 29. dxe6 {[%clk 0:02:30]}  Qxe6 {[%clk 0:02:00]} 30. Rag1 {[%clk 0:02:30]}  Re7 {[%clk 0:01:39]} 31. Nd5 {[%clk 0:02:26]}  Rf7 {[%clk 0:01:34]} 32. Rxg6 {[%clk 0:02:25]}  Qxg6 {[%clk 0:01:34]} 33. Rxg6 {[%clk 0:02:26]}  Kxg6 {[%clk 0:01:34]} 34. Qe2 {[%clk 0:02:13]}  Kh7 {[%clk 0:01:21]} 35. Qe6 {[%clk 0:02:11]}  Rbf8 {[%clk 0:01:21]} 36. Qxd6 {[%clk 0:02:09]}  Ra8 {[%clk 0:01:20]} 37. Qe6 {[%clk 0:02:08]}  Rff8 {[%clk 0:01:14]} 38. Bxf5+ {[%clk 0:02:07]}  Kh8 {[%clk 0:01:14]} 39. Qg6 {[%clk 0:02:07]}  Rxf5 {[%clk 0:01:14]} 40. Qxf5 {[%clk 0:02:08]}  Rxa5 {[%clk 0:01:14]} 41. Qc8+ {[%clk 0:02:05]}  Kh7 {[%clk 0:01:13]} 42. Ne7 {[%clk 0:02:06]}  h5 {[%clk 0:01:12]} 43. Qg8+ {[%clk 0:02:02]}  Kh6 {[%clk 0:01:12]} 44. Qf7 {[%clk 0:02:01]} 1-0


[Site "https://www.chess.com"]

[Event "Titled Tuesday Blitz March 08 Early 2022"]
[White "Ardila, Oscar Humberto"]
[Black "Brunner, Nicolas"]
[WhiteFideId "4404742"]
[BlackFideId "620246"]
[WhiteElo "1966"]
[BlackElo "2372"]
[Result "0-1"]
[Round "02"]
[TimeControl "180+1"]
[Date "2022.03.09"]
[WhiteClock "0:00:26"]
[BlackClock "0:01:31"]

1. d4 {[%clk 0:03:00]}  d5 {[%clk 0:02:58]} 2. c4 {[%clk 0:03:00]}  e6 {[%clk 0:02:56]} 3. Nc3 {[%clk 0:03:00]}  Be7 {[%clk 0:02:56]} 4. Nf3 {[%clk 0:02:58]}  Nf6 {[%clk 0:02:55]} 5. Bg5 {[%clk 0:02:58]}  h6 {[%clk 0:02:54]} 6. Bh4 {[%clk 0:02:57]}  O-O {[%clk 0:02:55]} 7. e3 {[%clk 0:02:57]}  b6 {[%clk 0:02:54]} 8. cxd5 {[%clk 0:02:57]}  Nxd5 {[%clk 0:02:54]} 9. Bxe7 {[%clk 0:02:49]}  Qxe7 {[%clk 0:02:54]} 10. Bd3 {[%clk 0:02:48]}  Bb7 {[%clk 0:02:52]} 11. O-O {[%clk 0:02:46]}  Nd7 {[%clk 0:02:51]} 12. e4 {[%clk 0:02:44]}  Nxc3 {[%clk 0:02:50]} 13. bxc3 {[%clk 0:02:44]}  c5 {[%clk 0:02:50]} 14. Qe2 {[%clk 0:02:41]}  Nf6 {[%clk 0:02:43]} 15. Rac1 {[%clk 0:02:38]}  Rfd8 {[%clk 0:02:41]} 16. Rfd1 {[%clk 0:02:37]}  Rac8 {[%clk 0:02:33]} 17. Bb1 {[%clk 0:02:32]}  cxd4 {[%clk 0:01:58]} 18. cxd4 {[%clk 0:02:31]}  Qa3 {[%clk 0:01:58]} 19. Rxc8 {[%clk 0:02:25]}  Rxc8 {[%clk 0:01:57]} 20. h3 {[%clk 0:01:39]}  Rc1 {[%clk 0:01:56]} 21. e5 {[%clk 0:01:06]}  Nd5 {[%clk 0:01:51]} 22. Qd2 {[%clk 0:00:50]}  Rxd1+ {[%clk 0:01:44]} 23. Qxd1 {[%clk 0:00:51]}  Nc3 {[%clk 0:01:44]} 24. Qc2 {[%clk 0:00:43]}  Nxb1 {[%clk 0:01:43]} 25. Qxb1 {[%clk 0:00:44]}  Bxf3 {[%clk 0:01:43]} 26. gxf3 {[%clk 0:00:43]}  Qxf3 {[%clk 0:01:43]} 27. Qb3 {[%clk 0:00:24]}  Qxb3 {[%clk 0:01:41]} 28. axb3 {[%clk 0:00:25]}  Kf8 {[%clk 0:01:37]} 29. Kg2 {[%clk 0:00:25]}  Ke7 {[%clk 0:01:35]} 30. Kf3 {[%clk 0:00:25]}  Kd7 {[%clk 0:01:33]} 31. Ke4 {[%clk 0:00:26]}  Kc6 {[%clk 0:01:34]} 32. f4 {[%clk 0:00:26]}  g6 {[%clk 0:01:32]} 33. h4 {[%clk 0:00:26]}  h5 {[%clk 0:01:31]} 34. b4 {[%clk 0:00:26]}  a5 {[%clk 0:01:30]} 35. bxa5 {[%clk 0:00:26]}  bxa5 {[%clk 0:01:31]} 36. Kd3 {[%clk 0:00:26]}  Kd5 {[%clk 0:01:31]} 37. Ke3 {[%clk 0:00:26]}  a4 {[%clk 0:01:31]} 0-1


[Site "https://www.chess.com"]

[Event "Titled Tuesday Blitz March 08 Early 2022"]
[White "Avila Pavas, Santiago"]
[Black "Moskvin, Anatoly"]
[WhiteFideId "4437128"]
[BlackFideId "24199990"]
[WhiteElo "2242"]
[BlackElo "2079"]
[Result "1-0"]
[Round "02"]
[TimeControl "180+1"]
[Date "2022.03.09"]
[WhiteClock "0:00:13"]
[BlackClock "0:00:04"]

1. d4 {[%clk 0:02:52]}  Nf6 {[%clk 0:02:59]} 2. Nf3 {[%clk 0:02:52]}  c5 {[%clk 0:02:58]} 3. d5 {[%clk 0:02:52]}  g6 {[%clk 0:02:57]} 4. Nc3 {[%clk 0:02:51]}  Bg7 {[%clk 0:02:54]} 5. e4 {[%clk 0:02:51]}  d6 {[%clk 0:02:54]} 6. Be2 {[%clk 0:02:51]}  O-O {[%clk 0:02:55]} 7. O-O {[%clk 0:02:52]}  Na6 {[%clk 0:02:50]} 8. Nd2 {[%clk 0:02:47]}  Nc7 {[%clk 0:02:46]} 9. a4 {[%clk 0:02:40]}  Bd7 {[%clk 0:02:45]} 10. f3 {[%clk 0:02:15]}  b6 {[%clk 0:02:29]} 11. Nc4 {[%clk 0:02:04]}  Qb8 {[%clk 0:02:13]} 12. Bf4 {[%clk 0:01:20]}  Nh5 {[%clk 0:02:10]} 13. Bg5 {[%clk 0:01:20]}  f6 {[%clk 0:01:19]} 14. Be3 {[%clk 0:01:20]}  f5 {[%clk 0:01:15]} 15. Bg5 {[%clk 0:00:54]}  Rf7 {[%clk 0:00:18]} 16. Kh1 {[%clk 0:00:20]}  f4 {[%clk 0:00:18]} 17. e5 {[%clk 0:00:19]}  dxe5 {[%clk 0:00:12]} 18. d6 {[%clk 0:00:11]}  Ne6 {[%clk 0:00:10]} 19. Bxe7 {[%clk 0:00:12]}  Nd4 {[%clk 0:00:10]} 20. Nd5 {[%clk 0:00:11]}  Be6 {[%clk 0:00:09]} 21. Nc7 {[%clk 0:00:11]}  Rxe7 {[%clk 0:00:06]} 22. Nxa8 {[%clk 0:00:08]}  Rd7 {[%clk 0:00:06]} 23. Nc7 {[%clk 0:00:08]}  Bf7 {[%clk 0:00:05]} 24. Nb5 {[%clk 0:00:08]}  Qd8 {[%clk 0:00:05]} 25. c3 {[%clk 0:00:08]}  Nxe2 {[%clk 0:00:03]} 26. Qxe2 {[%clk 0:00:08]}  Qh4 {[%clk 0:00:04]} 27. Qf2 {[%clk 0:00:07]}  Ng3+ {[%clk 0:00:04]} 28. Kg1 {[%clk 0:00:08]}  Nf5 {[%clk 0:00:03]} 29. Qxh4 {[%clk 0:00:08]}  Nxh4 {[%clk 0:00:04]} 30. Nd2 {[%clk 0:00:08]}  Nf5 {[%clk 0:00:03]} 31. Ne4 {[%clk 0:00:08]}  Ne3 {[%clk 0:00:04]} 32. Rfe1 {[%clk 0:00:08]}  a6 {[%clk 0:00:04]} 33. Nc7 {[%clk 0:00:08]}  Kf8 {[%clk 0:00:03]} 34. Rac1 {[%clk 0:00:08]}  Bc4 {[%clk 0:00:03]} 35. b4 {[%clk 0:00:08]}  cxb4 {[%clk 0:00:02]} 36. cxb4 {[%clk 0:00:09]}  b5 {[%clk 0:00:03]} 37. axb5 {[%clk 0:00:09]}  axb5 {[%clk 0:00:04]} 38. Ra1 {[%clk 0:00:09]}  h6 {[%clk 0:00:04]} 39. Ra8+ {[%clk 0:00:10]}  Kf7 {[%clk 0:00:04]} 40. Rc8 {[%clk 0:00:09]}  Be6 {[%clk 0:00:04]} 41. Nxe6 {[%clk 0:00:09]}  Kxe6 {[%clk 0:00:05]} 42. Nc5+ {[%clk 0:00:10]}  Kxd6 {[%clk 0:00:05]} 43. Nxd7 {[%clk 0:00:11]}  Kxd7 {[%clk 0:00:06]} 44. Rb8 {[%clk 0:00:11]}  Bf6 {[%clk 0:00:06]} 45. Rxb5 {[%clk 0:00:10]}  Be7 {[%clk 0:00:06]} 46. g3 {[%clk 0:00:10]}  g5 {[%clk 0:00:04]} 47. Rxe5 {[%clk 0:00:10]}  Bxb4 {[%clk 0:00:04]} 48. R1xe3 {[%clk 0:00:08]}  fxe3 {[%clk 0:00:04]} 49. Kf1 {[%clk 0:00:09]}  Bd2 {[%clk 0:00:04]} 50. Ke2 {[%clk 0:00:09]}  Kd6 {[%clk 0:00:05]} 51. Re4 {[%clk 0:00:10]}  Bc1 {[%clk 0:00:04]} 52. h4 {[%clk 0:00:10]}  Bd2 {[%clk 0:00:03]} 53. hxg5 {[%clk 0:00:10]}  hxg5 {[%clk 0:00:03]} 54. Rg4 {[%clk 0:00:11]}  Ke6 {[%clk 0:00:03]} 55. Rxg5 {[%clk 0:00:11]}  Kf6 {[%clk 0:00:04]} 56. Rg4 {[%clk 0:00:12]}  Bc1 {[%clk 0:00:04]} 57. Re4 {[%clk 0:00:12]}  Bd2 {[%clk 0:00:04]} 58. Rxe3 {[%clk 0:00:13]} 1-0


[Site "https://www.chess.com"]

[Event "Titled Tuesday Blitz March 08 Early 2022"]
[White "Bashirli, Nail"]
[Black "Lima, Kleyton Alcantara"]
[WhiteFideId "13406809"]
[BlackFideId "22718397"]
[WhiteElo "2333"]
[BlackElo "1951"]
[Result "0-1"]
[Round "02"]
[TimeControl "180+1"]
[Date "2022.03.09"]
[WhiteClock "0:00:31"]
[BlackClock "0:00:55"]

1. e4 {[%clk 0:02:58]}  c5 {[%clk 0:02:59]} 2. Nc3 {[%clk 0:02:58]}  d6 {[%clk 0:02:55]} 3. Bb5+ {[%clk 0:02:56]}  Bd7 {[%clk 0:02:55]} 4. Bxd7+ {[%clk 0:02:56]}  Nxd7 {[%clk 0:02:56]} 5. Nge2 {[%clk 0:02:54]}  Ngf6 {[%clk 0:02:55]} 6. O-O {[%clk 0:02:55]}  g6 {[%clk 0:02:55]} 7. d3 {[%clk 0:02:55]}  Bg7 {[%clk 0:02:56]} 8. f4 {[%clk 0:02:55]}  O-O {[%clk 0:02:56]} 9. h3 {[%clk 0:02:56]}  a6 {[%clk 0:02:55]} 10. Be3 {[%clk 0:02:56]}  b5 {[%clk 0:02:55]} 11. Qd2 {[%clk 0:02:56]}  b4 {[%clk 0:02:53]} 12. Nd1 {[%clk 0:02:56]}  a5 {[%clk 0:02:53]} 13. Nf2 {[%clk 0:02:52]}  a4 {[%clk 0:02:52]} 14. Rab1 {[%clk 0:02:52]}  a3 {[%clk 0:02:50]} 15. b3 {[%clk 0:02:50]}  Nb8 {[%clk 0:02:50]} 16. d4 {[%clk 0:02:45]}  cxd4 {[%clk 0:02:48]} 17. Nxd4 {[%clk 0:02:40]}  Qa5 {[%clk 0:02:46]} 18. Qe2 {[%clk 0:01:53]}  Rc8 {[%clk 0:02:44]} 19. Qf3 {[%clk 0:01:52]}  Nbd7 {[%clk 0:02:35]} 20. Nd3 {[%clk 0:01:50]}  Nc5 {[%clk 0:02:26]} 21. e5 {[%clk 0:01:40]}  Nxd3 {[%clk 0:02:23]} 22. exf6 {[%clk 0:01:32]}  Bxf6 {[%clk 0:02:16]} 23. cxd3 {[%clk 0:01:33]}  Ra6 {[%clk 0:02:08]} 24. Rfc1 {[%clk 0:01:32]}  Rxc1+ {[%clk 0:02:07]} 25. Rxc1 {[%clk 0:01:33]}  h5 {[%clk 0:02:04]} 26. Rc8+ {[%clk 0:01:30]}  Kg7 {[%clk 0:02:02]} 27. Qe4 {[%clk 0:01:30]}  d5 {[%clk 0:01:50]} 28. Ne6+ {[%clk 0:01:22]}  Rxe6 {[%clk 0:01:41]} 29. Qxe6 {[%clk 0:01:23]}  fxe6 {[%clk 0:01:40]} 30. Kf2 {[%clk 0:01:17]}  d4 {[%clk 0:01:39]} 31. Bd2 {[%clk 0:01:16]}  Qa6 {[%clk 0:01:39]} 32. Rc4 {[%clk 0:01:15]}  e5 {[%clk 0:01:34]} 33. fxe5 {[%clk 0:01:09]}  Bxe5 {[%clk 0:01:34]} 34. Bxb4 {[%clk 0:01:10]}  Bd6 {[%clk 0:01:33]} 35. Bd2 {[%clk 0:01:09]}  Qb6 {[%clk 0:01:27]} 36. Ke2 {[%clk 0:01:04]}  e5 {[%clk 0:01:26]} 37. Bg5 {[%clk 0:01:01]}  Qb7 {[%clk 0:01:22]} 38. Kf2 {[%clk 0:01:01]}  Be7 {[%clk 0:01:20]} 39. Bd2 {[%clk 0:01:01]}  e4 {[%clk 0:01:20]} 40. Bf4 {[%clk 0:00:55]}  Kf8 {[%clk 0:01:02]} 41. Ke2 {[%clk 0:00:42]}  exd3+ {[%clk 0:01:01]} 42. Kxd3 {[%clk 0:00:42]}  Qxg2 {[%clk 0:01:01]} 43. Rxd4 {[%clk 0:00:36]}  Qxa2 {[%clk 0:00:59]} 44. Kc4 {[%clk 0:00:30]}  Qc2+ {[%clk 0:00:57]} 45. Kd5 {[%clk 0:00:30]}  a2 {[%clk 0:00:55]} 46. Ke5 {[%clk 0:00:31]}  a1=Q {[%clk 0:00:55]} 0-1


[Site "https://www.chess.com"]

[Event "Titled Tuesday Blitz March 08 Early 2022"]
[White "Beerdsen, Thomas"]
[Black "Tasev, Dejan"]
[WhiteFideId "1030108"]
[BlackFideId "936618"]
[WhiteElo "2585"]
[BlackElo "2253"]
[Result "1-0"]
[Round "02"]
[TimeControl "180+1"]
[Date "2022.03.09"]
[WhiteClock "0:01:16"]
[BlackClock "0:00:38"]

1. e4 {[%clk 0:03:00]}  Nf6 {[%clk 0:02:58]} 2. Nc3 {[%clk 0:03:00]}  d6 {[%clk 0:02:58]} 3. d4 {[%clk 0:02:59]}  g6 {[%clk 0:02:58]} 4. h4 {[%clk 0:03:00]}  h5 {[%clk 0:02:58]} 5. Nh3 {[%clk 0:03:00]}  Bxh3 {[%clk 0:02:55]} 6. Rxh3 {[%clk 0:03:00]}  Bg7 {[%clk 0:02:56]} 7. Bg5 {[%clk 0:03:00]}  Nbd7 {[%clk 0:02:55]} 8. f4 {[%clk 0:02:56]}  O-O {[%clk 0:02:53]} 9. e5 {[%clk 0:02:54]}  Nh7 {[%clk 0:02:41]} 10. g4 {[%clk 0:02:46]}  Nxg5 {[%clk 0:02:40]} 11. hxg5 {[%clk 0:02:47]}  dxe5 {[%clk 0:02:37]} 12. dxe5 {[%clk 0:02:43]}  hxg4 {[%clk 0:02:29]} 13. Qxg4 {[%clk 0:02:44]}  Nb6 {[%clk 0:02:04]} 14. Bd3 {[%clk 0:02:29]}  Nd5 {[%clk 0:01:29]} 15. Bxg6 {[%clk 0:02:12]}  fxg6 {[%clk 0:01:11]} 16. Qe6+ {[%clk 0:02:11]}  Rf7 {[%clk 0:01:10]} 17. Nxd5 {[%clk 0:02:12]}  c6 {[%clk 0:01:06]} 18. O-O-O {[%clk 0:01:27]}  cxd5 {[%clk 0:01:03]} 19. Qxg6 {[%clk 0:01:28]}  Qb6 {[%clk 0:00:55]} 20. Rh8+ {[%clk 0:01:17]}  Kxh8 {[%clk 0:00:47]} 21. Qxf7 {[%clk 0:01:18]}  Qe3+ {[%clk 0:00:44]} 22. Kb1 {[%clk 0:01:18]}  Qh3 {[%clk 0:00:41]} 23. Qxd5 {[%clk 0:01:16]}  e6 {[%clk 0:00:38]} 24. Qxb7 {[%clk 0:01:16]} 1-0


[Site "https://www.chess.com"]